bitfinex-derivatives/quotes_ETHF0:USTF0_20250612
["timestamp","ask_amount","ask_price","bid_price","bid_amount"]
[1749713086268,2.59443,2764.5,2764.4,0.0620172]
[1749713087071,8.25036353,2764.5,2764.4,0.0620172]
[1749713087271,8.97369353,2764.5,2764.4,0.0620172]
[1749713087574,0.72349,2763.9,2763.7,3.2078]
[1749713088275,0.72349,2763.9,2763.6,0.72356]
[1749713088474,0.72347,2764.0,2763.7,0.72353]
[1749713088774,1.42360293,2763.9,2763.7,0.72353]
[1749713089066,0.72347,2764.0,2763.7,0.72353]
[1749713089273,1.42363787,2763.9,2763.7,0.72353]
[1749713089572,0.72347,2764.0,2763.7,0.72353]
[1749713089771,1.42359697,2763.9,2763.7,0.72353]
[1749713089963,0.72347,2764.0,2763.7,0.72353]
[1749713090162,3.2078,2763.8,2763.0,3.2078]
[1749713090365,0.72358,2763.6,2763.2,0.72366]
[1749713090577,0.72356,2763.6,2763.2,0.72366]
[1749713090874,1.95568,2763.6,2763.2,0.72365]
[1749713091480,1.95568,2763.6,2763.1,0.6104]
[1749713091670,1.95568,2763.6,2763.2,0.72364]
[1749713092370,0.72364,2763.4,2763.1,0.6104]
[1749713092567,0.72367,2763.2,2762.8,0.72376]
[1749713093275,0.592,2763.2,2762.9,0.72374]
[1749713093472,3.7998,2763.2,2762.7,3.2078]
[1749713093767,5.77978,2763.2,2762.8,0.72376]
[1749713093972,1.8483,2763.2,2762.7,3.2078]
[1749713094170,1.8483,2763.2,2763.0,0.7237]
[1749713095075,0.592,2763.2,2763.1,0.72369]
[1749713095771,0.592,2763.2,2763.0,0.72372]
[1749713096078,0.592,2763.2,2763.1,0.72369]
[1749713096278,0.592,2763.2,2762.9,0.6362]
[1749713096578,0.592,2763.2,2763.1,0.72369]
[1749713096777,3.8328,2763.5,2762.9,0.6362]
[1749713096978,3.8328,2763.5,2763.3,0.72363]
[1749713097277,3.8328,2763.5,2763.2,0.72365]
[1749713098180,5.1056,2763.5,2763.3,0.72363]
[1749713098875,1.8978,2763.5,2763.4,0.72361]
[1749713099277,0.625,2763.5,2763.4,0.72361]
[1749713099880,0.625,2763.5,2763.3,0.72363]
[1749713100179,0.625,2763.5,2763.1,3.7928]
[1749713100480,0.625,2763.5,2763.4,0.72361]
[1749713101480,0.625,2763.5,2763.3,0.72362]
[1749713101982,0.625,2763.5,2763.4,0.72361]
[1749713102682,1.9136,2763.7,2763.6,0.72356]
[1749713102883,1.9136,2763.7,2763.5,0.72357]
[1749713103182,1.9136,2763.7,2763.6,0.72356]
[1749713104077,0.6183,2763.7,2763.6,0.72356]
[1749713104281,0.6469,2764.0,2763.9,0.72348]
[1749713104976,0.00541956,2764.1,2764.0,0.72346]
[1749713105175,0.00541956,2764.1,2764.0,3.93126]
[1749713106790,0.2893,2764.8,2764.7,0.72327]
[1749713106985,0.2893,2764.8,2764.6,0.72329]
[1749713107288,0.72328,2764.7,2764.3,3.93116]
[1749713107589,0.7233,2764.6,2764.1,1.36702]
[1749713107792,1.2111,2764.5,2764.2,0.72339]
[1749713107991,1.8532,2764.5,2764.2,0.72339]
[1749713108187,1.8532,2764.5,2764.1,0.72883956]
[1749713108382,3.2078,2764.4,2764.1,0.00541956]
[1749713108582,1.8426,2764.3,2764.1,0.00541956]
[1749713109393,1.8426,2764.3,2764.1,0.72883956]
[1749713109787,0.6421,2764.5,2764.4,0.72335]
[1749713110993,0.6421,2764.5,2764.3,0.72337]
[1749713111895,0.6421,2764.5,2764.2,0.72339]
[1749713111896,0.2893,2764.4,2764.2,0.72339]
[1749713112597,3.9312,2764.3,2764.1,0.00541956]
[1749713112893,1.8143,2764.2,2764.1,0.00541956]
[1749713117598,2.5377,2764.2,2764.1,0.00541956]
[1749713118801,1.8143,2764.2,2764.1,0.00541956]
[1749713119103,2.5377,2764.2,2764.1,0.00541956]
[1749713120598,2.5377,2764.2,2764.1,0.06743676]
[1749713123795,7.5377,2764.2,2763.5,0.72358]
[1749713123995,7.5377,2764.2,2763.3,3.2078]
[1749713123996,0.72359,2763.5,2763.3,3.93142]
[1749713124198,2.4185,2763.4,2763.3,0.72364]
[1749713125502,2.4185,2763.4,2763.2,0.72365]
[1749713125803,2.4185,2763.4,2763.3,0.72364]
[1749713126207,2.4185,2763.4,2763.0,3.8352]
[1749713126508,2.4185,2763.4,2763.0,3.2078]
[1749713126708,2.4185,2763.4,2762.7,3.2078]
[1749713126909,3.2078,2762.9,2762.4,3.27078557]
[1749713127104,1.8156,2762.8,2762.4,3.2078]
[1749713127304,0.6237,2762.8,2762.7,0.7238]
[1749713127501,0.6237,2762.8,2762.6,0.72381]
[1749713127705,0.6237,2762.8,2762.7,0.7238]
[1749713127903,0.6237,2762.8,2762.6,0.72381]
[1749713128100,0.6237,2762.8,2762.4,3.2078]
[1749713128101,0.6237,2762.8,2762.4,3.93167]
[1749713128406,0.7238,2762.7,2762.4,3.2078]
[1749713128611,1.1919,2762.6,2762.4,3.93168]
[1749713128998,1.7348,2762.6,2762.4,3.2078]
[1749713129909,1.7348,2762.6,2762.4,3.93167]
[1749713130105,1.7348,2762.6,2762.4,3.2078]
[1749713130302,2.45864,2762.6,2762.4,3.2078]
[1749713130508,0.5429,2762.6,2762.4,3.2078]
[1749713130803,0.5429,2762.6,2762.4,3.93166]
[1749713131209,0.5429,2762.6,2762.5,0.72385]
[1749713131606,0.5429,2762.6,2762.4,3.2078]
[1749713132214,0.5429,2762.6,2762.3,0.72389]
[1749713132412,0.5429,2762.6,2762.4,0.72387]
[1749713132711,0.5429,2762.6,2762.3,0.72389]
[1749713132906,0.5429,2762.6,2762.1,5.0238]
[1749713132907,0.5429,2762.6,2762.4,0.72388]
[1749713133614,0.5429,2762.6,2762.4,0.72386]
[1749713134004,0.5429,2762.6,2762.3,0.72389]
[1749713134207,0.72386,2762.5,2762.1,4.53935]
[1749713134509,0.61,2762.4,2762.1,3.2078]
[1749713134810,1.2413,2762.3,2762.1,3.93174]
[1749713135813,1.2413,2762.3,2762.1,3.93175]
[1749713136014,0.6409,2762.2,2762.0,0.72396]
[1749713136314,0.6409,2762.2,2762.1,0.72395]
[1749713136514,1.2413,2762.3,2762.1,0.72395]
[1749713137115,1.2413,2762.3,2762.0,0.72396]
[1749713137715,1.96521,2762.3,2761.9,0.6375]
[1749713138207,1.2413,2762.3,2761.8,0.06299572]
[1749713138412,1.2413,2762.3,2761.6,1.2375]
[1749713138413,3.93181,2761.9,2761.6,0.6164]
[1749713138804,3.2078,2761.9,2761.6,0.6164]
[1749713139002,0.72405,2761.8,2761.4,3.93193]
[1749713139206,1.8961,2761.8,2761.5,0.72411]
[1749713139403,2.62014,2761.8,2761.4,3.93192]
[1749713139706,2.62013,2761.8,2761.5,0.72411]
[1749713140311,0.72406,2761.7,2761.4,3.2078]
[1749713140511,1.2966,2761.7,2761.4,3.93193]
[1749713141019,2.02067,2761.7,2761.4,3.93193]
[1749713141214,1.2966,2761.7,2761.4,3.2078]
[1749713141516,3.93191,2761.5,2760.8,3.2078]
[1749713141715,0.00542957,2761.4,2761.1,0.7242]
[1749713142013,0.00542957,2761.4,2761.0,0.72423]
[1749713142014,0.72956957,2761.4,2761.0,0.72423]
[1749713142208,0.72956957,2761.4,2760.9,1.8475]
[1749713142209,0.00542957,2761.4,2760.9,1.8475]
[1749713142409,0.72957957,2761.4,2761.0,0.72424]
[1749713142609,0.72418,2761.3,2760.9,1.8475]
[1749713142818,0.2897,2761.2,2761.0,0.72423]
[1749713143617,0.2897,2761.2,2760.9,1.8475]
[1749713143820,0.2897,2761.2,2760.9,2.57175]
[1749713144020,0.2897,2761.2,2761.0,0.72424]
[1749713144720,0.2897,2761.2,2760.9,2.57176]
[1749713145218,0.2897,2761.2,2760.9,1.8475]
[1749713145418,0.2897,2761.2,2760.9,2.57176]
[1749713146114,0.2897,2761.2,2761.0,0.72424]
[1749713146312,0.2897,2761.2,2760.9,2.57175]
[1749713146520,0.2897,2761.2,2761.0,0.72424]
[1749713146821,0.2897,2761.2,2761.0,0.72423]
[1749713147214,0.2897,2761.2,2760.9,1.8475]
[1749713147409,0.2897,2761.2,2760.9,2.57176]
[1749713147613,0.2897,2761.2,2761.0,0.72424]
[1749713147919,0.2897,2761.2,2760.9,2.57175]
[1749713148317,1.01389,2761.2,2760.9,2.57175]
[1749713148617,0.2897,2761.2,2761.0,0.72424]
[1749713148818,0.2897,2761.2,2760.9,1.8475]
[1749713149020,0.2897,2761.2,2760.9,2.57175]
[1749713149221,0.2897,2761.2,2760.9,1.8475]
[1749713149423,0.2897,2761.2,2760.9,2.57175]
[1749713149620,0.2897,2761.2,2760.9,0.6097]
[1749713149821,0.72422,2761.1,2760.9,0.6097]
[1749713150223,0.72422,2761.1,2760.8,3.93209]
[1749713150224,8.2078,2761.1,2759.5,3.2078]
[1749713150427,3.2078,2760.2,2759.5,3.2078]
[1749713150716,3.2078,2760.2,2759.5,6.30235]
[1749713150917,1.2091,2760.8,2759.9,3.2078]
[1749713151128,3.2078,2761.0,2760.2,3.2078]
[1749713151320,3.2078,2761.0,2760.3,1.2401]
[1749713151522,1.92465,2761.0,2760.5,3.2078]
[1749713151719,1.2004,2761.0,2760.6,0.72434]
[1749713151923,1.92464,2761.0,2760.6,1.35324]
[1749713152124,1.92466,2761.0,2760.6,0.6289]
[1749713152324,3.8397,2761.1,2760.5,3.93217]
[1749713152525,1.2004,2760.9,2760.5,3.93217]
[1749713152924,1.2004,2760.9,2760.5,0.72437]
[1749713153125,1.2004,2760.9,2760.5,3.93217]
[1749713153322,3.8397,2761.1,2760.5,3.2078]
[1749713153523,3.8397,2761.1,2760.8,0.72428]
[1749713153724,3.8397,2761.1,2760.6,0.72434]
[1749713153930,1.2004,2761.0,2760.6,0.72434]
[1749713154127,1.2004,2761.0,2760.7,0.72432]
[1749713154330,1.92465,2761.0,2760.5,3.2078]
[1749713154527,1.2004,2761.0,2760.5,3.2078]
[1749713154730,1.2004,2761.0,2760.6,0.72433]
[1749713154924,1.2004,2761.0,2760.7,0.7243]
[1749713155120,1.2004,2761.0,2760.6,0.72433]
[1749713155624,1.2004,2761.0,2760.7,0.72432]
[1749713156335,0.6319,2761.1,2760.5,3.2078]
[1749713156527,0.6319,2761.1,2760.8,0.72427]
[1749713156726,1.35612,2761.1,2760.7,0.72431]
[1749713156930,2.60462,2761.1,2760.7,0.72431]
[1749713157130,1.8804,2761.1,2760.8,0.72428]
[1749713157333,1.8804,2761.1,2761.0,0.0620172]
[1749713158036,2.60462,2761.1,2761.0,0.0620172]
[1749713158335,1.8804,2761.1,2761.0,0.0620172]
[1749713158934,0.9024,2761.2,2761.1,0.72422]
[1749713159834,0.9024,2761.2,2761.0,0.0620172]
[1749713160134,0.6127,2761.2,2761.1,0.72422]
[1749713160333,0.6127,2761.2,2761.0,0.7862472]
[1749713160534,0.6127,2761.2,2761.1,0.72422]
[1749713161431,0.6127,2761.2,2761.0,0.0620172]
[1749713161633,0.72422,2761.1,2761.0,0.0620172]
[1749713161843,2.00612,2761.1,2761.0,0.0620172]
[1749713162035,1.2819,2761.1,2761.0,0.0620172]
[1749713162844,2.00612,2761.1,2761.0,0.0620172]
[1749713163134,2.29582,2761.1,2761.0,0.0620172]
[1749713165441,1.5716,2761.1,2761.0,0.0620172]
[1749713165641,2.29582,2761.1,2761.0,0.0620172]
[1749713166232,1.5716,2761.1,2761.0,0.0620172]
[1749713166439,2.29582,2761.1,2761.0,0.0620172]
[1749713167444,1.5716,2761.1,2761.0,0.0620172]
[1749713167848,2.29582,2761.1,2761.0,0.0620172]
[1749713168145,3.65647145,2761.1,2761.0,0.0620172]
[1749713169445,1.81072,2760.9,2760.2,0.72444]
[1749713169646,0.72439,2760.5,2760.2,0.72444]
[1749713169839,2.3668,2760.4,2760.2,0.72444]
[1749713170038,1.1865,2760.4,2760.3,0.72443]
[1749713170442,1.1865,2760.4,2760.0,3.2078]
[1749713170743,1.1865,2760.4,2760.2,0.72443]
[1749713170941,1.1865,2760.4,2760.3,0.72443]
[1749713171946,1.1865,2760.4,2760.2,0.72444]
[1749713172247,1.1865,2760.4,2760.3,0.72443]
[1749713172650,1.1865,2760.4,2760.0,3.2078]
[1749713172850,1.1865,2760.4,2760.1,0.72447]
[1749713173049,1.2475,2760.3,2760.2,0.72445]
[1749713173352,1.2475,2760.3,2760.0,3.93229]
[1749713173543,1.2475,2760.3,2760.1,0.72448]
[1749713173742,1.2475,2760.3,2759.6,3.2078]
[1749713173945,0.72451,2760.0,2759.6,3.2078]
[1749713174138,1.8958,2759.9,2759.7,0.72458]
[1749713174349,2.62034,2759.9,2759.6,3.2078]
[1749713174542,1.8958,2759.9,2759.6,3.2078]
[1749713174850,0.6061,2759.8,2759.6,3.2078]
[1749713175047,1.2475,2759.7,2759.6,3.93241]
[1749713176051,0.6061,2759.8,2759.7,0.72458]
[1749713178555,0.6061,2759.8,2759.6,3.2078]
[1749713178556,1.8746,2759.8,2759.6,3.93239]
[1749713178952,1.8746,2759.8,2759.6,3.93241]
[1749713179553,1.8746,2759.8,2759.7,0.7865972]
[1749713179854,1.8746,2759.8,2759.7,0.0620172]
[1749713180657,2.59916,2759.8,2759.7,0.0620172]
[1749713181755,5.0824,2759.8,2759.7,0.0620172]
[1749713181956,5.80696,2759.8,2759.7,0.0620172]
[1749713184257,0.72467,2759.4,2758.9,3.8516]
[1749713184456,2.5495,2759.3,2759.0,0.72475]
[1749713184760,0.6019,2759.2,2758.6,5.01999]
[1749713184963,1.2956,2759.1,2759.0,0.72474]
[1749713185258,1.2956,2759.1,2758.6,5.01999]
[1749713185459,1.2956,2759.1,2759.0,0.72477]
[1749713186460,0.6019,2759.2,2759.0,0.72477]
[1749713186662,0.6019,2759.2,2758.6,5.01999]
[1749713186862,0.6019,2759.2,2759.0,0.72476]
[1749713187158,1.8975,2759.2,2759.0,0.72476]
[1749713187561,1.8975,2759.2,2758.9,0.72478]
[1749713187756,1.8975,2759.2,2758.7,1.1745]
[1749713187955,1.8975,2759.2,2759.0,0.72476]
[1749713188151,3.2078,2759.5,2759.0,8.2078]
[1749713188357,5.584,2759.8,2759.1,0.6115]
[1749713188559,0.7246,2759.7,2759.3,0.72467]
[1749713188763,1.1744,2759.6,2759.4,0.72466]
[1749713188961,1.1744,2759.6,2759.3,0.72467]
[1749713189460,1.1744,2759.6,2759.4,0.72465]
[1749713189661,1.1744,2759.6,2759.5,0.72464]
[1749713189858,0.5434,2759.9,2759.3,3.2078]
[1749713190054,0.5434,2759.9,2759.7,0.72456]
[1749713190257,0.5434,2759.9,2759.8,0.72456]
[1749713190962,0.5434,2759.9,2759.7,0.0620172]
[1749713191159,0.5434,2759.9,2759.8,0.72456]
[1749713191558,0.5434,2759.9,2759.8,3.93236]
[1749713191960,0.5434,2759.9,2759.8,4.54846]
[1749713192261,10.45909028,2761.9,2759.8,4.54846]
[1749713192262,0.72423,2761.1,2760.0,1.81124]
[1749713192463,0.649,2761.0,2760.5,0.72435]
[1749713192658,1.8328,2761.0,2760.9,0.72427]
[1749713193065,1.8328,2761.0,2760.7,3.2078]
[1749713193567,1.8328,2761.0,2760.6,0.72976957]
[1749713193568,5.0406,2761.0,2760.6,0.00542957]
[1749713193770,3.2078,2760.7,2760.6,0.00542957]
[1749713194266,1.8328,2761.0,2760.6,0.72976957]
[1749713195261,1.8328,2761.0,2760.7,0.72432]
[1749713195569,2.55705,2761.0,2760.6,0.00542957]
[1749713196165,2.55704,2761.0,2760.6,0.72975957]
[1749713196767,1.8328,2761.0,2760.7,0.72432]
[1749713197168,2.55705,2761.0,2760.7,0.72432]
[1749713197470,3.2078,2760.8,2760.7,0.72432]
[1749713198264,3.2078,2760.8,2760.6,0.72975957]
[1749713198463,1.2003,2760.7,2760.6,0.72975957]
[1749713199170,1.92462,2760.7,2760.6,0.00542957]
[1749713199771,1.2003,2760.7,2760.6,0.00542957]
[1749713200273,1.92462,2760.7,2760.6,0.00542957]
[1749713200467,1.81088,2760.6,2759.9,3.2078]
[1749713200665,3.2078,2760.2,2759.9,0.72453]
[1749713200865,1.8432,2760.1,2759.8,0.7865572]
[1749713201067,1.8432,2760.1,2759.8,0.0620172]
[1749713201268,2.56768,2760.1,2759.8,0.0620172]
[1749713201467,3.2078,2760.0,2759.8,0.0620172]
[1749713201668,1.95143,2759.9,2759.8,0.0620172]
[1749713203771,2.59843,2759.9,2759.8,0.0620172]
[1749713204173,0.647,2759.9,2759.8,0.0620172]
[1749713204480,5.79523,2759.9,2759.8,0.0620172]
[1749713204774,2.58743,2759.9,2759.8,0.0620172]
[1749713211380,0.72463,2759.6,2759.3,0.72467]
[1749713211574,0.6319,2759.5,2759.4,0.72465]
[1749713212169,3.2078,2759.6,2759.5,0.72464]
[1749713212375,0.00542957,2759.7,2759.6,0.72461]
[1749713212873,0.00542957,2759.7,2759.6,3.93241]
[1749713213473,0.00542957,2759.7,2759.6,8.93241]
[1749713214385,2.4654,2760.5,2759.8,1.81137]
[1749713214685,3.18979,2760.5,2760.1,0.72447]
[1749713214886,0.7244,2760.4,2760.1,0.72447]
[1749713215085,2.0149,2760.4,2760.1,0.72447]
[1749713215285,0.72443,2760.3,2759.9,4.55942]
[1749713215486,0.00542957,2760.4,2760.2,0.72443]
[1749713215675,0.00542957,2760.4,2760.1,0.72447]
[1749713215881,0.00542957,2760.4,2759.9,3.8349]
[1749713216184,0.00542957,2760.4,2760.2,0.72444]
[1749713216588,0.72983957,2760.4,2760.0,0.72449]
[1749713216782,1.2905,2760.3,2760.0,0.72449]
[1749713216986,1.9325,2760.3,2760.0,0.72449]
[1749713217190,2.65694,2760.3,2759.9,4.55942]
[1749713217490,1.9325,2760.3,2760.1,0.72448]
[1749713217889,1.9325,2760.3,2760.0,0.72449]
[1749713218190,1.9325,2760.3,2760.1,0.72447]
[1749713218391,0.00542957,2760.4,2760.3,0.72443]
[1749713218796,0.00542957,2760.4,2760.2,0.72444]
[1749713219987,0.00542957,2760.4,2760.0,1.8685]
[1749713220187,0.00542957,2760.4,2759.9,3.8349]
[1749713220483,3.2078,2760.1,2759.8,0.06744677]
[1749713220680,0.72453,2759.9,2759.8,0.06744677]
[1749713220884,1.7982,2760.0,2759.8,0.06744677]
[1749713221081,5.006,2760.0,2759.8,0.06744677]
[1749713221389,5.006,2760.0,2759.8,0.79199677]
[1749713221584,1.7982,2760.0,2759.9,0.72453]
[1749713221785,0.6067,2760.0,2759.8,0.06744677]
[1749713221986,0.6067,2760.0,2759.8,0.79198677]
[1749713222487,0.6067,2760.0,2759.8,0.06744677]
[1749713222696,0.6067,2760.0,2759.8,0.79199677]
[1749713222994,0.6067,2760.0,2759.8,0.06744677]
[1749713223189,0.6067,2760.0,2759.8,0.79199677]
[1749713223692,0.6067,2760.0,2759.8,0.06744677]
[1749713224499,1.8872,2760.0,2759.8,0.06744677]
[1749713224995,1.8872,2760.0,2759.8,0.79199677]
[1749713225199,1.8872,2760.0,2759.8,0.06744677]
[1749713225587,2.61172,2760.0,2759.8,0.06744677]
[1749713225791,3.2078,2759.9,2759.8,0.06744677]
[1749713225993,1.8872,2760.0,2759.8,0.79200677]
[1749713226192,1.8872,2760.0,2759.8,0.06744677]
[1749713226392,2.61172,2760.0,2759.8,0.06744677]
[1749713227498,1.8872,2760.0,2759.8,0.06744677]
[1749713228289,2.61173,2760.0,2759.8,0.06744677]
[1749713228499,1.8872,2760.0,2759.8,0.06744677]
[1749713229098,3.93233,2759.9,2759.8,0.06744677]
[1749713229400,5.16643,2759.9,2759.8,0.06744677]
[1749713233708,4.4419,2759.9,2759.8,0.06744677]
[1749713235008,1.2341,2759.9,2759.8,0.06744677]
[1749713236911,1.95863,2759.9,2759.8,0.06744677]
[1749713237215,1.2341,2759.9,2759.8,0.06744677]
[1749713239006,0.6067,2760.0,2759.8,0.79198677]
[1749713239409,0.6067,2760.0,2759.9,0.72453]
[1749713239610,0.6067,2760.0,2759.8,0.06744677]
[1749713240216,0.6067,2760.0,2759.8,0.79199677]
[1749713240418,1.7817,2760.0,2759.8,0.06744677]
[1749713240914,1.7817,2760.0,2759.8,0.79200677]
[1749713241115,1.7817,2760.0,2759.8,0.06744677]
[1749713241718,2.50621,2760.0,2759.8,0.06744677]
[1749713242111,1.7817,2760.0,2759.9,0.72453]
[1749713242514,0.6067,2760.0,2759.9,0.72453]
[1749713243317,0.6488,2760.2,2760.1,0.72448]
[1749713243708,0.6488,2760.2,2760.0,0.72449]
[1749713244222,1.37326,2760.2,2759.8,3.99978677]
[1749713244517,2.66686,2760.2,2759.9,0.72452]
[1749713245119,0.72449,2760.1,2759.8,0.79199677]
[1749713245320,2.01809,2760.1,2759.8,0.79199677]
[1749713245722,1.2936,2760.1,2759.9,0.72453]
[1749713246521,2.01809,2760.1,2759.8,0.79199677]
[1749713246721,1.2936,2760.1,2759.9,0.72453]
[1749713247023,1.2936,2760.1,2759.8,0.06744677]
[1749713247024,2.0181,2760.1,2759.8,0.06744677]
[1749713247714,0.72451,2760.0,2759.8,0.06744677]
[1749713248023,1.92253,2759.9,2759.8,0.06744677]
[1749713248321,1.8438,2759.9,2759.8,0.06744677]
[1749713249023,2.56833,2759.9,2759.8,0.06744677]
[1749713250526,1.8438,2759.9,2759.8,0.06744677]
[1749713250718,2.56833,2759.9,2759.8,0.06744677]
[1749713251031,1.8438,2759.9,2759.8,0.06744677]
[1749713251317,2.56833,2759.9,2759.8,0.06744677]
[1749713254222,1.8438,2759.9,2759.1,0.6171]
[1749713254431,3.2078,2759.3,2758.8,0.6177]
[1749713254630,0.6233,2759.2,2759.1,0.72474]
[1749713255127,0.6233,2759.2,2759.0,0.72475]
[1749713255630,1.2663,2759.1,2759.0,0.72475]
[1749713256229,1.2663,2759.1,2758.7,0.603]
[1749713256430,1.2663,2759.1,2758.8,0.72481]
[1749713257331,3.2078,2759.0,2758.7,1.32783]
[1749713257731,1.99105,2759.1,2758.8,0.72482]
[1749713258334,0.72477,2759.0,2758.7,0.603]
[1749713258632,1.91607,2759.0,2758.7,0.603]
[1749713259333,1.91607,2759.0,2758.7,1.32784]
[1749713259533,1.91607,2759.0,2758.7,0.603]
[1749713259832,1.1913,2759.0,2758.7,1.32784]
[1749713260021,1.91608,2759.0,2758.7,0.603]
[1749713260226,1.1913,2759.0,2758.7,1.32782]
[1749713260433,1.1913,2759.0,2758.8,0.72482]
[1749713261027,1.1913,2759.0,2758.7,0.603]
[1749713261333,1.1913,2759.0,2758.8,0.72482]
[1749713261631,1.8012,2759.0,2758.7,1.32783]
[1749713262233,1.8012,2759.0,2758.8,0.72481]
[1749713263129,1.8012,2759.0,2758.7,1.32783]
[1749713263333,1.8012,2759.0,2758.8,0.72481]
[1749713263833,1.8012,2759.0,2758.8,0.7248]
[1749713265230,1.8012,2759.0,2758.7,1.32783]
[1749713265431,2.52598,2759.0,2758.6,3.93266]
[1749713265628,2.52598,2759.0,2758.6,0.72486]
[1749713266237,1.8012,2759.0,2758.3,3.8367]
[1749713266434,0.72483,2758.8,2758.3,3.8367]
[1749713266734,1.2796,2758.7,2758.3,3.8367]
[1749713266936,1.8984,2758.7,2758.6,0.72487]
[1749713269736,0.5437,2758.8,2758.7,0.72485]
[1749713271739,1.7235,2758.8,2758.7,0.72485]
[1749713274245,0.5437,2758.8,2758.7,0.72485]
[1749713274432,0.5437,2758.8,2758.7,1.36945]
[1749713275737,0.5437,2758.8,2758.7,0.72485]
[1749713277450,1.81137,2759.9,2758.7,5.0]
[1749713277743,0.7247,2759.3,2758.9,0.72478]
[1749713277946,0.7247,2759.3,2758.6,3.8688172]
[1749713277947,1.2005,2759.3,2758.6,3.8688172]
[1749713278149,1.33582,2759.2,2758.8,0.7248]
[1749713278446,1.2005,2759.1,2758.9,0.72479]
[1749713278650,1.2005,2759.1,2758.8,0.7248]
[1749713278950,4.4083,2759.1,2758.7,0.00542957]
[1749713279146,0.5861,2759.0,2758.7,0.73025957]
[1749713279351,1.2883,2758.9,2758.8,0.72482]
[1749713281049,1.2883,2758.9,2758.7,0.00542957]
[1749713281245,0.5864,2758.8,2758.7,0.00542957]
[1749713281553,0.5864,2758.8,2758.7,0.73027957]
[1749713281948,0.5861,2759.0,2758.9,0.72479]
[1749713282156,0.00542957,2759.3,2759.1,0.72474]
[1749713282350,1.28762957,2759.3,2759.1,0.72474]
[1749713282549,1.28762957,2759.3,2759.2,0.72472]
[1749713282750,1.28762957,2759.3,2759.1,0.72473]
[1749713283144,1.28762957,2759.3,2759.0,0.72476]
[1749713283453,0.00542957,2759.3,2759.2,0.72472]
[1749713283655,0.00542957,2759.3,2759.0,0.72476]
[1749713283850,1.28762957,2759.3,2759.0,0.72476]
[1749713285455,1.28762957,2759.3,2759.2,0.72472]
[1749713285752,1.28762957,2759.3,2758.8,3.8353]
[1749713285953,1.28762957,2759.3,2759.1,0.72474]
[1749713286750,1.28762957,2759.3,2759.0,0.72475]
[1749713287157,1.28762957,2759.3,2758.8,3.8353]
[1749713287554,1.28762957,2759.3,2758.8,3.2078]
[1749713287750,3.2078,2759.1,2758.7,0.06744677]
[1749713287955,1.1774,2759.0,2758.7,0.06744677]
[1749713288156,2.54029,2759.0,2758.7,0.06744677]
[1749713288659,1.8155,2759.0,2758.7,0.06744677]
[1749713288862,1.8155,2759.0,2758.8,0.7248]
[1749713289261,2.54028,2759.0,2758.7,0.79228677]
[1749713289461,1.8155,2759.0,2758.7,0.79228677]
[1749713289760,1.8155,2759.0,2758.8,0.72482]
[1749713290662,1.8155,2759.0,2758.8,0.72481]
[1749713291961,1.8155,2759.0,2758.9,0.72479]
[1749713292965,0.00542957,2759.3,2759.2,0.72472]
[1749713293158,0.61962957,2759.3,2759.1,0.72473]
[1749713293465,1.82802957,2759.3,2758.8,3.7939]
[1749713293765,1.82802957,2759.3,2758.8,5.60591]
[1749713293965,1.82802957,2759.3,2759.1,0.72472]
[1749713294265,1.82802957,2759.3,2758.8,3.7939]
[1749713294465,1.82802957,2759.3,2759.1,0.72472]
[1749713295163,2.55272957,2759.3,2759.0,0.72476]
[1749713295461,1.82802957,2759.3,2758.8,3.2078]
[1749713295662,2.55272957,2759.3,2758.8,3.2078]
[1749713296266,2.55272957,2759.3,2758.9,0.72478]
[1749713296460,1.82802957,2759.3,2759.0,0.72477]
[1749713296759,2.55273957,2759.3,2758.9,0.72479]
[1749713296965,1.82802957,2759.3,2759.0,0.72477]
[1749713297167,1.82802957,2759.3,2758.9,0.72478]
[1749713297366,2.55273957,2759.3,2758.9,0.72478]
[1749713297566,2.55273957,2759.3,2759.0,0.72476]
[1749713297866,1.82802957,2759.3,2758.8,0.7248]
[1749713298063,0.72476,2759.1,2758.8,0.7248]
[1749713298366,1.292,2759.0,2758.8,0.7248]
[1749713298563,0.6021,2758.9,2758.8,0.7248]
[1749713308585,0.00542957,2759.3,2758.7,1.81752957]
[1749713308783,1.86642957,2759.3,2759.0,0.7867672]
[1749713308985,1.86642957,2759.3,2759.1,0.72474]
[1749713309583,2.59111957,2759.3,2759.0,0.7867672]
[1749713310186,1.86642957,2759.3,2759.1,0.72474]
[1749713310483,1.86642957,2759.3,2759.0,0.7867772]
[1749713310685,2.59111957,2759.3,2759.0,0.7867772]
[1749713311685,1.86642957,2759.3,2759.1,0.72474]
[1749713311984,1.86642957,2759.3,2759.0,0.0620172]
[1749713312184,1.86642957,2759.3,2759.0,0.7867672]
[1749713312385,2.59113957,2759.3,2759.0,0.0620172]
[1749713312585,2.59113957,2759.3,2759.0,0.7867772]
[1749713313087,2.59113957,2759.3,2759.0,0.0620172]
[1749713313888,1.86642957,2759.3,2759.0,0.0620172]
[1749713314087,0.72474,2759.2,2759.0,0.0620172]
[1749713314388,5.19514,2759.1,2759.0,0.0620172]
[1749713346310,0.72482,2758.8,2758.7,0.00542957]
[1749713346610,3.93262,2758.8,2758.7,0.00542957]
[1749713349011,5.056,2758.8,2758.3,0.5926]
[1749713349207,0.72495,2758.3,2758.2,0.6286]
[1749713349509,0.72495,2758.3,2757.7,3.2078]
[1749713349510,0.72506,2757.9,2757.8,0.6286]
[1749713349716,0.72504,2758.0,2757.8,0.6286]
[1749713349912,0.72505,2758.0,2757.8,0.6286]
[1749713350114,0.72506,2757.9,2757.8,0.6286]
[1749713351205,0.72504,2758.0,2757.8,0.6286]